[Event "Late-Titled-Tuesday-Blitz-January-23-2024"]
[Site "Chess.com"]
[Date "2024.01.23"]
[Round "9"]
[White "sergeikim"]
[Black "WPWPWP-2015"]
[Result "1-0"]
[WhiteElo "2426"]
[BlackElo "2485"]
[TimeControl "180+1"]
[EndTime "15:42:58 PST"]
[Termination "sergeikim won by resignation"]

1. d4 {[%clk 0:02:56.2]} 1... Nf6 {[%clk 0:02:58.8]} 2. c4 {[%clk 0:02:56.2]}
2... e6 {[%clk 0:02:58.7]} 3. Nc3 {[%clk 0:02:56.4]} 3... d5 {[%clk 0:02:58.4]}
4. Nf3 {[%clk 0:02:56.1]} 4... c6 {[%clk 0:02:58.3]} 5. e3 {[%clk 0:02:55.3]}
5... Nbd7 {[%clk 0:02:57.8]} 6. Bd3 {[%clk 0:02:55.2]} 6... dxc4 {[%clk
0:02:57.6]} 7. Bxc4 {[%clk 0:02:54.9]} 7... b5 {[%clk 0:02:58]} 8. Bb3 {[%clk
0:02:54.7]} 8... Bd6 {[%clk 0:02:56.3]} 9. O-O {[%clk 0:02:54.4]} 9... O-O
{[%clk 0:02:55.5]} 10. e4 {[%clk 0:02:47]} 10... b4 {[%clk 0:02:29]} 11. e5
{[%clk 0:02:47]} 11... bxc3 {[%clk 0:02:07.7]} 12. exd6 {[%clk 0:02:46.8]} 12...
Ne4 {[%clk 0:02:02.9]} 13. bxc3 {[%clk 0:02:41.5]} 13... Nxd6 {[%clk 0:02:02.8]}
14. Ba3 {[%clk 0:02:36.8]} 14... Qc7 {[%clk 0:01:54.2]} 15. Ne5 {[%clk
0:02:30.6]} 15... Rd8 {[%clk 0:01:39.6]} 16. Qh5 {[%clk 0:02:14.8]} 16... Nxe5
{[%clk 0:01:31.9]} 17. Qxe5 {[%clk 0:02:13.2]} 17... a5 {[%clk 0:01:22.2]} 18.
Bc5 {[%clk 0:02:02.9]} 18... a4 {[%clk 0:01:19.4]} 19. Bc2 {[%clk 0:02:01.9]}
19... Ba6 {[%clk 0:01:04.8]} 20. Rfe1 {[%clk 0:02:01]} 20... Ne8 {[%clk
0:01:01.1]} 21. Qh5 {[%clk 0:01:58.1]} 21... Nf6 {[%clk 0:00:57.4]} 22. Qh4
{[%clk 0:01:54]} 22... Bc4 {[%clk 0:00:55.5]} 23. Re3 {[%clk 0:01:52]} 23... Rd5
{[%clk 0:00:39.5]} 24. Rg3 {[%clk 0:01:50.3]} 24... Rh5 {[%clk 0:00:13.1]} 25.
Qxf6 {[%clk 0:01:34]} 25... Qxg3 {[%clk 0:00:13]} 26. hxg3 {[%clk 0:01:32.4]}
26... gxf6 {[%clk 0:00:13.4]} 27. g4 {[%clk 0:01:30.8]} 27... Rg5 {[%clk
0:00:12.5]} 28. f3 {[%clk 0:01:29]} 28... h5 {[%clk 0:00:12.5]} 29. gxh5 {[%clk
0:01:27.4]} 29... Rxh5 {[%clk 0:00:12.4]} 30. Be4 {[%clk 0:01:24.4]} 30... Rc8
{[%clk 0:00:12.4]} 31. a3 {[%clk 0:01:23.1]} 31... f5 {[%clk 0:00:12.4]} 32. Bc2
{[%clk 0:01:22.3]} 32... Bb5 {[%clk 0:00:10.6]} 33. Re1 {[%clk 0:01:19.5]} 33...
Kg7 {[%clk 0:00:11]} 34. Bd6 {[%clk 0:01:17.9]} 34... Kf6 {[%clk 0:00:10.9]} 35.
Kf2 {[%clk 0:01:16.4]} 35... Rg8 {[%clk 0:00:10.1]} 36. Rb1 {[%clk 0:01:08.4]}
36... Rd8 {[%clk 0:00:10]} 37. Be5+ {[%clk 0:01:07.8]} 37... Ke7 {[%clk
0:00:10.5]} 38. Rb4 {[%clk 0:01:06.5]} 38... f6 {[%clk 0:00:10.5]} 39. Bg3
{[%clk 0:01:05.7]} 39... e5 {[%clk 0:00:06.8]} 40. f4 {[%clk 0:00:55.7]} 40...
exd4 {[%clk 0:00:06.4]} 41. cxd4 {[%clk 0:00:56.1]} 41... Ke6 {[%clk 0:00:05.8]}
42. Bd1 {[%clk 0:00:53.5]} 42... Kd6 {[%clk 0:00:05.5]} 43. Bxh5 {[%clk
0:00:53.1]} 43... Kc7 {[%clk 0:00:04.9]} 44. Bf3 {[%clk 0:00:52.7]} 44... Rg8
{[%clk 0:00:04.8]} 45. Bh4 {[%clk 0:00:52.5]} 45... Rg6 {[%clk 0:00:04.3]} 46.
g3 {[%clk 0:00:51.8]} 46... Kd6 {[%clk 0:00:04.4]} 47. Bh5 {[%clk 0:00:51.3]}
47... Rh6 {[%clk 0:00:04.3]} 48. Bf7 {[%clk 0:00:51.1]} 48... Ke7 {[%clk
0:00:04.2]} 49. Bc4 {[%clk 0:00:50.7]} 49... Bxc4 {[%clk 0:00:03.5]} 50. Rxc4
{[%clk 0:00:50.7]} 50... Kd6 {[%clk 0:00:03.9]} 51. Rxa4 {[%clk 0:00:50.3]}
51... Kd5 {[%clk 0:00:04]} 52. Ke3 {[%clk 0:00:49.3]} 52... Rh7 {[%clk
0:00:03.3]} 53. Ra5+ {[%clk 0:00:49.4]} 53... Ke6 {[%clk 0:00:02.6]} 54. Rc5
{[%clk 0:00:49]} 54... Rc7 {[%clk 0:00:02.4]} 55. a4 {[%clk 0:00:47.8]} 55...
Ra7 {[%clk 0:00:02.1]} 56. a5 {[%clk 0:00:48]} 56... Rb7 {[%clk 0:00:01.8]} 57.
Rxc6+ {[%clk 0:00:47.7]} 57... Kd5 {[%clk 0:00:02.4]} 58. Rc5+ {[%clk
0:00:47.8]} 58... Ke6 {[%clk 0:00:02.6]} 59. Kd3 {[%clk 0:00:48]} 59... Rb3+
{[%clk 0:00:02.7]} 60. Kc4 {[%clk 0:00:48.4]} 60... Rb1 {[%clk 0:00:03.1]} 61.
d5+ {[%clk 0:00:48.4]} 61... Kd6 {[%clk 0:00:03.1]} 62. Rc6+ {[%clk 0:00:48.6]}
62... Kd7 {[%clk 0:00:03.6]} 63. Bxf6 {[%clk 0:00:48.4]} 63... Rc1+ {[%clk
0:00:03.6]} 64. Bc3 {[%clk 0:00:47.7]} 64... Rg1 {[%clk 0:00:03.2]} 65. a6
{[%clk 0:00:47.2]} 65... Rxg3 {[%clk 0:00:03.3]} 66. a7 {[%clk 0:00:47.5]} 66...
Rg8 {[%clk 0:00:03.4]} 67. Be5 {[%clk 0:00:45.3]} 67... Ra8 {[%clk 0:00:03.3]}
68. Bb8 {[%clk 0:00:45.4]} 68... Rxa7 {[%clk 0:00:03.5]} 1-0

[Event "Late-Titled-Tuesday-Blitz-January-23-2024"]
[Site "Chess.com"]
[Date "2024.01.23"]
[Round "9"]
[White "TigrVShlyape"]
[Black "M1711"]
[Result "1-0"]
[WhiteElo "2948"]
[BlackElo "2668"]
[TimeControl "180+1"]
[EndTime "15:43:00 PST"]
[Termination "TigrVShlyape won by resignation"]

1. d4 {[%clk 0:03:00.9]} 1... Nf6 {[%clk 0:02:58.9]} 2. Bf4 {[%clk 0:03:00.1]}
2... g6 {[%clk 0:02:58.6]} 3. Nf3 {[%clk 0:02:59.3]} 3... Bg7 {[%clk 0:02:58.3]}
4. c3 {[%clk 0:03:00]} 4... O-O {[%clk 0:02:58.2]} 5. h3 {[%clk 0:02:59.5]} 5...
d6 {[%clk 0:02:58.4]} 6. Nbd2 {[%clk 0:02:59]} 6... c5 {[%clk 0:02:58.1]} 7.
dxc5 {[%clk 0:02:58.8]} 7... dxc5 {[%clk 0:02:58]} 8. e4 {[%clk 0:02:59.4]} 8...
Nc6 {[%clk 0:02:55.8]} 9. Be2 {[%clk 0:02:58.2]} 9... b6 {[%clk 0:02:35.5]} 10.
O-O {[%clk 0:02:45.9]} 10... Bb7 {[%clk 0:02:34.7]} 11. Re1 {[%clk 0:02:43.3]}
11... Qd7 {[%clk 0:02:23.2]} 12. a4 {[%clk 0:02:34.9]} 12... Rad8 {[%clk
0:02:20.8]} 13. Qc2 {[%clk 0:02:32.4]} 13... Nh5 {[%clk 0:01:55]} 14. Bh2 {[%clk
0:02:29.9]} 14... Bh6 {[%clk 0:01:51.1]} 15. Nc4 {[%clk 0:02:10.9]} 15... Qe6
{[%clk 0:01:40]} 16. Bf1 {[%clk 0:02:06.7]} 16... Ba6 {[%clk 0:01:24.1]} 17. b3
{[%clk 0:01:57.8]} 17... Bf4 {[%clk 0:01:12.4]} 18. e5 {[%clk 0:01:39.4]} 18...
Bxh2+ {[%clk 0:01:09.9]} 19. Kxh2 {[%clk 0:01:34.3]} 19... Ng7 {[%clk
0:00:56.3]} 20. Qe4 {[%clk 0:01:32.2]} 20... Na5 {[%clk 0:00:32.9]} 21. Ng5
{[%clk 0:01:18.9]} 21... Qc8 {[%clk 0:00:17.8]} 22. Qh4 {[%clk 0:01:16]} 22...
h5 {[%clk 0:00:18.3]} 23. e6 {[%clk 0:01:06.6]} 23... Bxc4 {[%clk 0:00:15.8]}
24. Bxc4 {[%clk 0:01:05.4]} 24... f6 {[%clk 0:00:11]} 25. Nf7 {[%clk 0:01:05.3]}
25... Rd2 {[%clk 0:00:09.6]} 26. Rad1 {[%clk 0:00:58.4]} 26... Nxc4 {[%clk
0:00:07.9]} 27. Qxc4 {[%clk 0:00:31.2]} 27... Rxd1 {[%clk 0:00:08.1]} 28. Rxd1
{[%clk 0:00:30.9]} 28... Qxe6 {[%clk 0:00:08.4]} 29. Nd8 {[%clk 0:00:29.4]}
29... Qxc4 {[%clk 0:00:06.9]} 30. bxc4 {[%clk 0:00:30.3]} 30... Re8 {[%clk
0:00:03.5]} 31. g4 {[%clk 0:00:28.4]} 31... hxg4 {[%clk 0:00:03.4]} 32. hxg4
{[%clk 0:00:28.4]} 32... e5 {[%clk 0:00:03.2]} 33. Rd6 {[%clk 0:00:28.2]} 33...
f5 {[%clk 0:00:02.1]} 34. Nc6 {[%clk 0:00:26.1]} 34... fxg4 {[%clk 0:00:01.9]}
35. Rxg6 {[%clk 0:00:24.1]} 35... Re6 {[%clk 0:00:01.7]} 36. Rxe6 {[%clk
0:00:24]} 36... Nxe6 {[%clk 0:00:02.6]} 37. Kg3 {[%clk 0:00:21.8]} 37... Nf4
{[%clk 0:00:02.9]} 38. Kxg4 {[%clk 0:00:20.6]} 38... Nd3 {[%clk 0:00:03.5]} 39.
Kf5 {[%clk 0:00:19.2]} 39... Nb2 {[%clk 0:00:02.9]} 40. Kxe5 {[%clk 0:00:18]}
40... Nxa4 {[%clk 0:00:03.4]} 41. Nxa7 {[%clk 0:00:17.8]} 41... Nxc3 {[%clk
0:00:04]} 42. f4 {[%clk 0:00:14.5]} 42... Kf7 {[%clk 0:00:04.5]} 43. f5 {[%clk
0:00:14.9]} 43... Nd1 {[%clk 0:00:03.3]} 44. Nc8 {[%clk 0:00:14.3]} 44... Ne3
{[%clk 0:00:03.3]} 45. Nxb6 {[%clk 0:00:14.6]} 45... Ng4+ {[%clk 0:00:01.3]} 46.
Kf4 {[%clk 0:00:14.6]} 46... Nf6 {[%clk 0:00:01.5]} 47. Nd5 {[%clk 0:00:14.4]}
47... Nd7 {[%clk 0:00:01.5]} 48. Ke4 {[%clk 0:00:14.5]} 48... Ke8 {[%clk
0:00:01.4]} 49. f6 {[%clk 0:00:14.2]} 49... Kf7 {[%clk 0:00:01.7]} 50. Kf5
{[%clk 0:00:14.7]} 50... Nb8 {[%clk 0:00:01.7]} 51. Ne7 {[%clk 0:00:14.2]} 51...
Nd7 {[%clk 0:00:01.9]} 52. Nd5 {[%clk 0:00:14.6]} 52... Nb8 {[%clk 0:00:02.1]}
53. Nb6 {[%clk 0:00:15]} 53... Nc6 {[%clk 0:00:02.2]} 54. Nd7 {[%clk 0:00:14.5]}
54... Na5 {[%clk 0:00:02.3]} 55. Ne5+ {[%clk 0:00:14.1]} 55... Kf8 {[%clk
0:00:02.8]} 56. Ke6 {[%clk 0:00:14.6]} 56... Nb7 {[%clk 0:00:02.2]} 57. Nd7+
{[%clk 0:00:14.6]} 57... Ke8 {[%clk 0:00:02.4]} 58. f7+ {[%clk 0:00:15.1]} 1-0

[Event "Late-Titled-Tuesday-Blitz-January-23-2024"]
[Site "Chess.com"]
[Date "2024.01.23"]
[Round "9"]
[White "maximnovik"]
[Black "TanitoluwaAps116"]
[Result "0-1"]
[WhiteElo "2580"]
[BlackElo "2710"]
[TimeControl "180+1"]
[EndTime "15:43:00 PST"]
[Termination "TanitoluwaAps116 won on time"]

1. e4 {[%clk 0:02:58.9]} 1... c5 {[%clk 0:02:58.1]} 2. Nf3 {[%clk 0:02:58.6]}
2... e6 {[%clk 0:02:57.8]} 3. c3 {[%clk 0:02:58.3]} 3... Nf6 {[%clk 0:02:55.5]}
4. e5 {[%clk 0:02:58.4]} 4... Nd5 {[%clk 0:02:55.3]} 5. d4 {[%clk 0:02:59]} 5...
cxd4 {[%clk 0:02:55.2]} 6. cxd4 {[%clk 0:02:59.4]} 6... Nc6 {[%clk 0:02:54.3]}
7. Nc3 {[%clk 0:02:58.5]} 7... d6 {[%clk 0:02:54.8]} 8. exd6 {[%clk 0:02:36.6]}
8... Bxd6 {[%clk 0:02:54.1]} 9. Bd3 {[%clk 0:02:35.3]} 9... O-O {[%clk
0:02:51.5]} 10. O-O {[%clk 0:02:35.1]} 10... Nxc3 {[%clk 0:02:43.1]} 11. bxc3
{[%clk 0:02:34.9]} 11... e5 {[%clk 0:02:44]} 12. dxe5 {[%clk 0:02:19.4]} 12...
Nxe5 {[%clk 0:02:44.9]} 13. Nxe5 {[%clk 0:02:18.8]} 13... Bxe5 {[%clk
0:02:45.8]} 14. Bxh7+ {[%clk 0:02:18]} 14... Kxh7 {[%clk 0:02:46.7]} 15. Qh5+
{[%clk 0:02:17.1]} 15... Kg8 {[%clk 0:02:47.6]} 16. Qxe5 {[%clk 0:02:17]} 16...
Be6 {[%clk 0:02:48.5]} 17. Be3 {[%clk 0:02:12.9]} 17... Re8 {[%clk 0:02:40.4]}
18. Bd4 {[%clk 0:02:10.3]} 18... f6 {[%clk 0:02:39.7]} 19. Qg3 {[%clk
0:02:10.2]} 19... b6 {[%clk 0:02:34.7]} 20. Rfe1 {[%clk 0:02:08.6]} 20... Rc8
{[%clk 0:02:32]} 21. Re3 {[%clk 0:02:02.8]} 21... Kf7 {[%clk 0:01:57.2]} 22.
Rae1 {[%clk 0:01:56.3]} 22... Qd7 {[%clk 0:01:51.4]} 23. h4 {[%clk 0:01:39.4]}
23... Qd5 {[%clk 0:01:28]} 24. R1e2 {[%clk 0:01:26.6]} 24... Re7 {[%clk
0:01:16]} 25. f3 {[%clk 0:01:15.6]} 25... Rh8 {[%clk 0:01:12.9]} 26. Qf4 {[%clk
0:01:11.1]} 26... Rhe8 {[%clk 0:01:04.5]} 27. g4 {[%clk 0:01:01.9]} 27... Bd7
{[%clk 0:01:03.4]} 28. Rxe7+ {[%clk 0:00:55.1]} 28... Rxe7 {[%clk 0:01:04.3]}
29. Rxe7+ {[%clk 0:00:54.7]} 29... Kxe7 {[%clk 0:01:05.2]} 30. h5 {[%clk
0:00:53.5]} 30... Bc6 {[%clk 0:00:27.2]} 31. Kf2 {[%clk 0:00:51.8]} 31... Qxa2+
{[%clk 0:00:26.6]} 32. Kg3 {[%clk 0:00:52.2]} 32... Qe6 {[%clk 0:00:14.7]} 33.
h6 {[%clk 0:00:51.3]} 33... gxh6 {[%clk 0:00:14.6]} 34. Qxh6 {[%clk 0:00:51.2]}
34... Qd6+ {[%clk 0:00:14.3]} 35. Kf2 {[%clk 0:00:45.1]} 35... Bd5 {[%clk
0:00:10.6]} 36. f4 {[%clk 0:00:21]} 36... Bf7 {[%clk 0:00:06.8]} 37. Kg3 {[%clk
0:00:20.1]} 37... Qe6 {[%clk 0:00:05.8]} 38. Qh8 {[%clk 0:00:18.4]} 38... Qe1+
{[%clk 0:00:05.7]} 39. Bf2 {[%clk 0:00:14.6]} 39... Qxc3+ {[%clk 0:00:05.4]} 40.
Kh2 {[%clk 0:00:14.9]} 40... Qf3 {[%clk 0:00:04.9]} 41. Bg3 {[%clk 0:00:14]}
41... Qxg4 {[%clk 0:00:05.1]} 42. Qb8 {[%clk 0:00:12.8]} 42... Qh5+ {[%clk
0:00:04.6]} 43. Kg1 {[%clk 0:00:12.4]} 43... Qd1+ {[%clk 0:00:05.2]} 44. Kh2
{[%clk 0:00:12.2]} 44... Bd5 {[%clk 0:00:05.7]} 45. Qc7+ {[%clk 0:00:11.2]}
45... Ke6 {[%clk 0:00:05.4]} 46. f5+ {[%clk 0:00:11]} 46... Kxf5 {[%clk
0:00:05.7]} 47. Qf4+ {[%clk 0:00:10.7]} 47... Kg6 {[%clk 0:00:06]} 48. Qg4+
{[%clk 0:00:11]} 48... Qxg4 {[%clk 0:00:06.1]} 0-1

[Event "Late-Titled-Tuesday-Blitz-January-23-2024"]
[Site "Chess.com"]
[Date "2024.01.23"]
[Round "9"]
[White "GMJustin"]
[Black "Jem"]
[Result "0-1"]
[WhiteElo "2312"]
[BlackElo "2172"]
[TimeControl "180+1"]
[EndTime "15:43:05 PST"]
[Termination "Jem won on time"]

1. d4 {[%clk 0:02:29.6]} 1... Nf6 {[%clk 0:02:59.4]} 2. c4 {[%clk 0:02:29.3]}
2... g6 {[%clk 0:02:59.6]} 3. Nc3 {[%clk 0:02:28.4]} 3... Bg7 {[%clk 0:02:59.8]}
4. e4 {[%clk 0:02:27.5]} 4... d6 {[%clk 0:02:58.9]} 5. Nf3 {[%clk 0:02:26.3]}
5... O-O {[%clk 0:02:58.9]} 6. Be2 {[%clk 0:02:23.6]} 6... e5 {[%clk 0:02:58.9]}
7. O-O {[%clk 0:02:21.4]} 7... Nc6 {[%clk 0:02:58.8]} 8. d5 {[%clk 0:02:20]}
8... Ne7 {[%clk 0:02:56.8]} 9. Be3 {[%clk 0:02:19.4]} 9... Ng4 {[%clk
0:02:37.7]} 10. Bg5 {[%clk 0:02:17.9]} 10... h6 {[%clk 0:02:35.3]} 11. Bd2
{[%clk 0:02:14.1]} 11... f5 {[%clk 0:02:31.4]} 12. Nh4 {[%clk 0:01:57]} 12...
Nf6 {[%clk 0:02:22.6]} 13. exf5 {[%clk 0:01:54.2]} 13... gxf5 {[%clk 0:02:17.7]}
14. g3 {[%clk 0:01:50.6]} 14... a6 {[%clk 0:02:05.8]} 15. Qc1 {[%clk 0:01:41.2]}
15... Kh7 {[%clk 0:02:00.7]} 16. f4 {[%clk 0:01:36.1]} 16... e4 {[%clk
0:01:56.7]} 17. Be3 {[%clk 0:01:22.2]} 17... b6 {[%clk 0:01:50.4]} 18. Qd2
{[%clk 0:01:20.2]} 18... Ng6 {[%clk 0:01:44.5]} 19. Nxg6 {[%clk 0:01:14.2]}
19... Kxg6 {[%clk 0:01:45.4]} 20. h3 {[%clk 0:01:04.6]} 20... h5 {[%clk
0:01:44.2]} 21. Bd4 {[%clk 0:01:00.6]} 21... Rh8 {[%clk 0:01:31.3]} 22. Nd1
{[%clk 0:00:52.3]} 22... Qg8 {[%clk 0:01:17.2]} 23. Ne3 {[%clk 0:00:50]} 23...
Kf7 {[%clk 0:01:16.5]} 24. Kh2 {[%clk 0:00:35.6]} 24... h4 {[%clk 0:01:16.1]}
25. g4 {[%clk 0:00:33]} 25... fxg4 {[%clk 0:01:14.7]} 26. hxg4 {[%clk
0:00:32.8]} 26... Bd7 {[%clk 0:00:45.6]} 27. g5 {[%clk 0:00:31.2]} 27... Nh5
{[%clk 0:00:42.9]} 28. g6+ {[%clk 0:00:18.7]} 28... Kf8 {[%clk 0:00:41.1]} 29.
Bxh5 {[%clk 0:00:15.6]} 29... Rxh5 {[%clk 0:00:40.4]} 30. f5 {[%clk 0:00:14.7]}
30... Bxd4 {[%clk 0:00:27.2]} 31. Qxd4 {[%clk 0:00:14.3]} 31... Qg7 {[%clk
0:00:27.4]} 32. Qxg7+ {[%clk 0:00:06.8]} 32... Kxg7 {[%clk 0:00:28.3]} 33. Rf4
{[%clk 0:00:07.2]} 33... Re8 {[%clk 0:00:19.9]} 34. Rg1 {[%clk 0:00:04.4]} 34...
Kf6 {[%clk 0:00:15.7]} 35. Rgg4 {[%clk 0:00:04.2]} 35... Bxf5 {[%clk 0:00:13.9]}
36. Rxh4 {[%clk 0:00:03.6]} 36... Rxh4+ {[%clk 0:00:12.1]} 37. Rxh4 {[%clk
0:00:03.7]} 37... Bxg6 {[%clk 0:00:12.2]} 38. Kg3 {[%clk 0:00:04.1]} 38... Ke5
{[%clk 0:00:12.3]} 39. Rg4 {[%clk 0:00:03.8]} 39... Kd4 {[%clk 0:00:09.5]} 40.
Nc2+ {[%clk 0:00:02.3]} 40... Kd3 {[%clk 0:00:09.4]} 41. Nb4+ {[%clk 0:00:01.7]}
41... Kxc4 {[%clk 0:00:09]} 42. Nc6 {[%clk 0:00:01.3]} 42... Bf5 {[%clk
0:00:07.2]} 43. Rf4 {[%clk 0:00:01.7]} 43... Bh7 {[%clk 0:00:06.6]} 44. Kf2
{[%clk 0:00:01.8]} 44... Kxd5 {[%clk 0:00:06.8]} 45. Nb4+ {[%clk 0:00:01.8]}
45... Kc4 {[%clk 0:00:06.5]} 46. Nxa6 {[%clk 0:00:02]} 46... Kd3 {[%clk
0:00:05.7]} 47. Nxc7 {[%clk 0:00:01.7]} 47... e3+ {[%clk 0:00:06.2]} 48. Ke1
{[%clk 0:00:01.5]} 48... Rg8 {[%clk 0:00:06]} 0-1

[Event "Late-Titled-Tuesday-Blitz-January-23-2024"]
[Site "Chess.com"]
[Date "2024.01.23"]
[Round "9"]
[White "greekplayer1"]
[Black "GMBenjaminBok"]
[Result "0-1"]
[WhiteElo "2726"]
[BlackElo "2890"]
[TimeControl "180+1"]
[EndTime "15:43:13 PST"]
[Termination "GMBenjaminBok won by resignation"]

1. e4 {[%clk 0:02:52.3]} 1... c5 {[%clk 0:02:59.3]} 2. Nf3 {[%clk 0:02:49.6]}
2... d6 {[%clk 0:02:59.5]} 3. d4 {[%clk 0:02:49.8]} 3... cxd4 {[%clk 0:03:00.4]}
4. Nxd4 {[%clk 0:02:50.7]} 4... Nf6 {[%clk 0:03:00.8]} 5. Nc3 {[%clk 0:02:51.4]}
5... a6 {[%clk 0:03:01.3]} 6. h3 {[%clk 0:02:52]} 6... e5 {[%clk 0:03:01.4]} 7.
Nb3 {[%clk 0:02:51.4]} 7... Be7 {[%clk 0:02:59.9]} 8. g4 {[%clk 0:02:51.9]} 8...
h6 {[%clk 0:03:00.2]} 9. Bg2 {[%clk 0:02:52.4]} 9... b5 {[%clk 0:02:59.6]} 10.
a3 {[%clk 0:02:46.5]} 10... Bb7 {[%clk 0:02:59.5]} 11. Be3 {[%clk 0:02:38.6]}
11... Nbd7 {[%clk 0:02:59.8]} 12. Qd2 {[%clk 0:02:35.6]} 12... Rc8 {[%clk
0:02:59.3]} 13. f4 {[%clk 0:02:27.8]} 13... Nb6 {[%clk 0:02:55.5]} 14. fxe5
{[%clk 0:02:05]} 14... dxe5 {[%clk 0:02:19.9]} 15. Qxd8+ {[%clk 0:02:00.7]}
15... Bxd8 {[%clk 0:02:20.8]} 16. O-O-O {[%clk 0:02:00.9]} 16... Nc4 {[%clk
0:02:18.5]} 17. Bf2 {[%clk 0:01:48.5]} 17... Be7 {[%clk 0:02:14.7]} 18. Nd5
{[%clk 0:01:42.2]} 18... Nxd5 {[%clk 0:02:11.3]} 19. exd5 {[%clk 0:01:43.1]}
19... O-O {[%clk 0:02:06.7]} 20. Rhe1 {[%clk 0:01:31.2]} 20... Rfd8 {[%clk
0:02:00.6]} 21. Kb1 {[%clk 0:01:11.9]} 21... a5 {[%clk 0:01:58.9]} 22. Nd2
{[%clk 0:00:59.3]} 22... Bxd5 {[%clk 0:01:53.3]} 23. Bxd5 {[%clk 0:00:58]} 23...
Rxd5 {[%clk 0:01:52.5]} 24. Nxc4 {[%clk 0:00:58.1]} 24... Rxd1+ {[%clk
0:01:52.6]} 25. Rxd1 {[%clk 0:00:59]} 25... Rxc4 {[%clk 0:01:42.3]} 26. Rd5
{[%clk 0:00:57.5]} 26... Rf4 {[%clk 0:01:30.5]} 27. Bb6 {[%clk 0:00:41.7]} 27...
e4 {[%clk 0:01:05.1]} 28. Rxb5 {[%clk 0:00:34.7]} 28... g6 {[%clk 0:00:46.3]}
29. c4 {[%clk 0:00:30.6]} 29... a4 {[%clk 0:00:41.2]} 30. c5 {[%clk 0:00:16.7]}
30... e3 {[%clk 0:00:39.6]} 31. c6 {[%clk 0:00:16.7]} 31... e2 {[%clk
0:00:28.2]} 32. Re5 {[%clk 0:00:16.2]} 32... Rf1+ {[%clk 0:00:25.1]} 33. Kc2
{[%clk 0:00:15.8]} 33... Bg5 {[%clk 0:00:17.6]} 34. c7 {[%clk 0:00:10.3]} 34...
Rc1+ {[%clk 0:00:16.3]} 35. Kd3 {[%clk 0:00:10.5]} 35... Bf4 {[%clk 0:00:17.2]}
36. Rxe2 {[%clk 0:00:07.9]} 36... Bxc7 {[%clk 0:00:17]} 37. Re8+ {[%clk
0:00:07.9]} 37... Kg7 {[%clk 0:00:16]} 38. Bd4+ {[%clk 0:00:08.4]} 38... f6
{[%clk 0:00:16.5]} 39. Re7+ {[%clk 0:00:08.3]} 39... Kf8 {[%clk 0:00:16.7]} 40.
Bxf6 {[%clk 0:00:09.2]} 40... Bd8 {[%clk 0:00:13.4]} 41. Re6 {[%clk 0:00:04.7]}
41... Kf7 {[%clk 0:00:13.6]} 42. Ra6 {[%clk 0:00:01.9]} 42... Bxf6 {[%clk
0:00:13.3]} 43. Ra7+ {[%clk 0:00:02.8]} 43... Ke6 {[%clk 0:00:13.3]} 44. Ra6+
{[%clk 0:00:02.9]} 44... Kf7 {[%clk 0:00:11.6]} 45. Ra7+ {[%clk 0:00:03.1]}
45... Kg8 {[%clk 0:00:12.2]} 46. Ra8+ {[%clk 0:00:03.4]} 46... Kh7 {[%clk
0:00:12.6]} 47. Ra7+ {[%clk 0:00:04]} 47... Bg7 {[%clk 0:00:13.1]} 48. Rxa4
{[%clk 0:00:03.5]} 48... Bxb2 {[%clk 0:00:12.7]} 49. Ra7+ {[%clk 0:00:04.4]}
49... Bg7 {[%clk 0:00:12.7]} 50. a4 {[%clk 0:00:05.3]} 50... Rh1 {[%clk
0:00:12.6]} 51. Ke4 {[%clk 0:00:05.8]} 51... Rxh3 {[%clk 0:00:13]} 52. a5 {[%clk
0:00:06.7]} 52... Rg3 {[%clk 0:00:13.1]} 53. Kf4 {[%clk 0:00:07.3]} 53... Ra3
{[%clk 0:00:13.5]} 54. a6 {[%clk 0:00:07.6]} 54... Ra4+ {[%clk 0:00:13.8]} 55.
Kf3 {[%clk 0:00:07.8]} 55... g5 {[%clk 0:00:14.2]} 56. Kg3 {[%clk 0:00:07.9]}
56... Kg6 {[%clk 0:00:14]} 57. Kf3 {[%clk 0:00:08.5]} 57... Bd4 {[%clk
0:00:12.6]} 58. Ra8 {[%clk 0:00:08.3]} 58... Kf7 {[%clk 0:00:09.1]} 59. Kg3
{[%clk 0:00:08.3]} 59... Be5+ {[%clk 0:00:08.9]} 60. Kh3 {[%clk 0:00:08.6]}
60... Ra3+ {[%clk 0:00:08.9]} 61. Kg2 {[%clk 0:00:08.5]} 61... Rg3+ {[%clk
0:00:08.7]} 62. Kf2 {[%clk 0:00:07.1]} 62... Rxg4 {[%clk 0:00:09.6]} 63. a7
{[%clk 0:00:05.4]} 63... Ra4 {[%clk 0:00:09.6]} 0-1